bitfinex/quotes_SOLUSD_20241121
["timestamp","ask_amount","ask_price","bid_price","bid_amount"]
[1732217428679,2.5,256.34,256.11,25.80540001]
[1732217428877,23.776884,256.31,255.9,1.9538]
[1732217429078,23.776884,256.25,255.82,1.9544]
[1732217429289,20.0,256.24,255.86,7.63760731]
[1732217429483,20.0,256.24,255.87,2.5]
[1732217429782,20.0,256.22,255.86,5.13760731]
[1732217430102,20.0,256.22,255.88,9.1436]
[1732217430318,195.46514071,256.27,255.88,9.1436]
[1732217430319,20.0,256.26,255.88,9.1436]
[1732217430475,20.0,256.26,255.88,6.6436]
[1732217430681,20.0,256.24,255.88,6.6436]
[1732217431297,23.776884,256.23,255.89,23.776884]
[1732217431505,197.6057766,256.27,255.9,0.7815]
[1732217431506,20.0,256.2,255.9,0.7815]
[1732217431700,20.0,256.2,255.9,2.7353]
[1732217432011,20.0,256.2,255.91,32.149]
[1732217432307,23.776884,256.24,255.91,32.149]
[1732217432505,20.0,256.23,255.91,32.149]
[1732217432801,20.0,256.23,255.94,55.925884]
[1732217432992,23.776884,256.26,255.94,55.925884]
[1732217433805,23.776884,256.26,255.96,23.776884]
[1732217434194,20.0,256.25,255.96,23.776884]
[1732217435096,20.0,256.21,255.94,32.149]
[1732217436487,20.0,256.21,255.95,23.776884]
[1732217442294,23.776884,256.16,255.94,32.149]
[1732217442596,20.0,256.15,255.94,32.149]
[1732217443304,20.0,256.19,255.94,32.149]
[1732217443614,20.0,256.19,255.95,23.776884]
[1732217444588,23.776884,256.16,255.95,23.776884]
[1732217444790,20.0,256.15,255.95,23.776884]
[1732217445402,20.0,256.19,255.95,23.776884]
[1732217445716,20.0,256.17,255.95,23.776884]
[1732217446088,15.28145338,256.2,255.95,23.776884]
[1732217446310,2.20005338,256.2,255.95,23.776884]
[1732217446510,12.3629,256.26,255.95,23.776884]
[1732217447717,20.0,256.25,255.95,23.776884]
[1732217448022,20.0,256.23,255.95,23.776884]
[1732217448192,20.0,256.21,255.95,23.776884]
[1732217449720,23.776884,256.22,255.95,23.776884]
[1732217449721,20.0,256.25,255.95,26.511684]
[1732217450396,20.0,256.25,255.95,23.776884]
[1732217451106,20.0,256.23,255.95,23.776884]
[1732217451306,20.0,256.21,255.95,23.776884]
[1732217454709,14.51879876,256.26,255.83,2.5]
[1732217454710,20.0,256.25,255.97,23.776884]
[1732217455894,23.776884,256.24,255.97,23.776884]
[1732217456299,20.0,256.23,255.97,23.776884]
[1732217456896,14.51879876,256.26,255.97,24.558184]
[1732217457093,14.51879876,256.26,255.97,23.776884]
[1732217457610,32.54920109,256.25,255.97,23.776884]
[1732217457823,2.86157454,256.24,255.97,23.776884]
[1732217458022,23.776884,256.23,255.97,23.776884]
[1732217458319,20.0,256.2,255.97,23.776884]
[1732217458495,20.0,256.2,255.96,31.5825]
[1732217458496,2.86157454,256.19,255.96,31.5825]
[1732217460020,2.86157454,256.19,255.98,23.776884]
[1732217460608,20.0,256.18,255.98,23.776884]
[1732217460816,2.86157454,256.17,255.98,23.776884]
[1732217461104,2.18540368,256.19,255.98,23.776884]
[1732217461105,2.86349719,256.16,255.98,23.776884]
[1732217461626,2.86349719,256.15,255.98,23.776884]
[1732217461918,2.86349719,256.14,255.98,23.776884]
[1732217462125,2.86349719,256.13,255.98,23.776884]
[1732217462302,2.86349719,256.12,255.98,23.776884]
[1732217462626,2.18540368,256.19,255.98,23.776884]
[1732217462925,2.86372052,256.18,255.98,23.776884]
[1732217463226,2.86372052,256.17,255.98,23.776884]
[1732217463404,2.86372052,256.16,255.98,23.776884]
[1732217463604,2.86372052,256.15,255.98,23.776884]
[1732217463800,2.86372052,256.21,255.98,23.776884]
[1732217464006,2.86372052,256.2,255.98,23.776884]
[1732217464498,2.86372052,256.21,255.98,23.776884]
[1732217464722,23.776884,256.2,255.98,23.776884]
[1732217464907,2.86372052,256.19,255.98,23.776884]
[1732217465107,2.86372052,256.21,255.98,23.776884]
[1732217465307,2.86372052,256.2,255.98,23.776884]
[1732217465519,2.86372052,256.19,255.98,23.776884]
[1732217465720,2.86372052,256.18,255.98,23.776884]
[1732217465920,2.86372052,256.17,255.98,23.776884]
[1732217466113,2.86372052,256.16,255.98,23.776884]
[1732217466315,2.86372052,256.15,255.98,23.776884]
[1732217466516,2.86372052,256.15,255.9,0.7815]
[1732217466517,23.776884,256.13,255.72,2.5]
[1732217466722,20.0,256.1,255.71,0.7821]
[1732217467027,20.0,256.06,255.71,0.7821]
[1732217467350,194.99652883,256.16,255.71,0.7821]
[1732217467351,20.0,256.04,255.71,0.7821]
[1732217467627,2.86372052,256.03,255.7,2.5]
[1732217468505,2.86372052,256.03,255.71,2.7374]
[1732217469632,2.86372052,256.03,255.72,16.9537]
[1732217469801,2.86372052,256.03,255.73,0.782]
[1732217470004,2.86372052,256.03,255.73,2.7371]
[1732217470530,2.86372052,256.03,255.74,23.776884]
[1732217470917,2.86372052,256.03,255.74,24.558884]
[1732217471912,32.9475,256.04,255.74,24.558884]
[1732217472827,2.87122595,256.03,255.74,24.558884]
[1732217473029,20.0,256.02,255.74,24.558884]
[1732217473333,2.87122655,256.01,255.74,24.558884]
[1732217473631,2.87122655,256.0,255.74,26.513984]
[1732217473835,20.0,256.02,255.74,26.513984]
[1732217473836,2.87122655,255.99,255.76,23.776884]
[1732217474125,2.87122655,255.98,255.76,23.776884]
[1732217474436,2.87122595,256.03,255.76,23.776884]
[1732217474620,2.87066775,256.02,255.76,23.776884]
[1732217474845,2.87066775,256.01,255.78,23.776884]
[1732217475024,2.87066775,256.0,255.78,23.776884]
[1732217475212,2.87066775,255.99,255.78,23.776884]
[1732217475531,22.87122595,256.03,255.78,23.776884]
[1732217475832,22.86969848,256.02,255.78,23.776884]
[1732217476033,2.86969848,256.01,255.78,23.776884]
[1732217476235,22.86969848,256.01,255.78,23.776884]
[1732217476532,2.86969848,256.0,255.78,23.776884]
[1732217476709,22.86969848,256.0,255.78,23.776884]
[1732217476910,2.87122595,256.03,255.77,1.9548]
[1732217476911,2.87122595,256.03,255.8,40.730584]
[1732217477114,2.87358858,256.02,255.8,40.730584]
[1732217477332,2.87358858,256.01,255.8,40.730584]
[1732217477516,2.87358858,256.01,255.82,23.776884]
[1732217477718,2.87358858,256.01,255.84,23.776884]
[1732217477911,2.87358858,256.01,255.86,23.776884]
[1732217478117,12.1739,256.11,255.86,23.776884]
[1732217478532,2.87425931,256.1,255.86,23.776884]
[1732217478727,2.87425931,256.09,255.86,23.776884]
[1732217479033,20.0,256.1,255.83,16.9537]
[1732217479034,2.87425931,256.08,255.88,23.776884]
[1732217479337,2.87425931,256.07,255.88,23.776884]
[1732217479630,2.87425931,256.06,255.88,23.776884]
[1732217479939,2.22753224,256.11,255.88,23.776884]
[1732217480115,33.215,256.19,255.87,1.9541]
[1732217480116,33.215,256.19,255.9,26.276884]
[1732217480314,33.215,256.19,255.9,23.776884]
[1732217480934,33.215,256.19,255.91,2.7353]
[1732217481130,33.215,256.19,255.91,1.9538]
[1732217481322,20.0,256.18,255.91,1.9538]
[1732217481522,20.0,256.18,255.89,16.9537]
[1732217481932,20.0,256.18,255.79,4.63048389]
[1732217481933,12.04800734,255.9,255.82,0.7817]
[1732217482139,2.5,255.73,255.48,3.24]
[1732217482318,33.215,255.81,255.26,6.8746354]
[1732217482319,20.0,255.5,255.26,6.8746354]
[1732217482514,195.16002445,255.4,255.26,0.89544554]
[1732217483133,195.16002445,255.4,255.09,3.61139283]
[1732217483446,197.35237546,255.4,255.1,5.0]
[1732217483739,197.35237546,255.4,255.08,15.6644]
[1732217483740,3.7387671,255.39,255.08,15.6644]
[1732217483928,3.7387671,255.39,254.81,19.62898777]
[1732217483929,195.16002445,255.3,254.97,2.5]
[1732217484120,195.16002445,255.3,254.95,3.24]
[1732217484121,22.85841034,255.29,254.99,2.5]
[1732217484324,20.0,255.29,255.03,2.5]
[1732217485032,20.0,255.36,255.04,2.5]
[1732217485240,0.88035676,255.35,254.98,2.5]
[1732217485441,0.88035676,255.35,255.02,2.5]
[1732217486147,0.88035676,255.35,255.04,2.5]
[1732217486321,0.88035676,255.35,255.06,2.5]
[1732217486839,0.88035676,255.35,255.13,23.776884]
[1732217487131,0.88035676,255.35,255.11,23.776884]
[1732217487341,0.88035676,255.35,255.03,2.5]
[1732217487551,0.88035676,255.35,255.06,2.5]
[1732217487842,196.50559257,255.35,254.98,2.5]
[1732217488029,20.0,255.34,255.0,5.0]
[1732217488340,0.88035676,255.33,255.05,5.0]
[1732217488540,0.88035676,255.33,255.07,2.5]
[1732217488742,0.88035676,255.33,255.06,2.5]
[1732217489034,0.88035676,255.33,255.11,23.776884]
[1732217489241,0.88035676,255.33,255.07,23.776884]
[1732217489443,0.88035676,255.33,255.09,23.776884]
[1732217489742,0.88035676,255.33,255.12,2.5]
[1732217489947,0.88035676,255.33,255.15,23.776884]
[1732217491634,0.88035676,255.33,255.16,23.776884]
[1732217493824,0.88035676,255.33,255.15,2.5]
[1732217494144,0.88035676,255.33,255.16,23.776884]
[1732217494833,0.88035676,255.33,255.14,23.776884]
[1732217495037,0.88035676,255.33,255.16,23.776884]
[1732217495238,0.88035676,255.33,255.25,23.776884]
[1732217495428,195.62523581,255.66,255.27,23.776884]
[1732217495429,12.345,255.56,255.27,23.776884]
[1732217495626,14.48322652,255.56,255.27,23.776884]
[1732217495939,14.48322652,255.56,255.26,23.776884]
[1732217496120,14.48322652,255.56,255.28,23.776884]
[1732217497736,14.48322652,255.56,255.26,23.776884]
[1732217497737,14.48322652,255.56,255.26,26.276884]
[1732217498936,20.0,255.47,255.14,14.24]
[1732217499144,20.0,255.47,255.14,2.5]
[1732217499445,20.0,255.47,255.08,2.5]
[1732217499634,0.88035676,255.46,255.11,2.5]
[1732217499945,2.5,255.45,255.17,5.0]
[1732217500246,2.5,255.45,255.15,2.5]
[1732217500446,2.5,255.45,255.1,2.5]
[1732217500747,2.5,255.45,254.94,19.11919722]
[1732217500748,0.88035676,255.44,255.06,2.5]
[1732217500952,0.88035676,255.44,255.05,2.5]
[1732217501123,0.88035676,255.44,254.94,19.11919722]
[1732217501124,0.88035676,255.44,255.09,5.0]
[1732217501328,0.88035676,255.44,255.09,16.74]
[1732217501525,0.88035676,255.44,255.16,2.5]
[1732217501929,0.88035676,255.44,255.15,2.5]
[1732217502143,0.88035676,255.44,255.16,11.74]
[1732217502534,0.88035676,255.44,255.17,23.776884]
[1732217502740,0.88035676,255.44,255.16,23.776884]
[1732217503753,0.88035676,255.44,255.2,11.74]
[1732217503958,0.88035676,255.44,255.21,38.016884]
[1732217504644,2.5,255.45,255.21,35.516884]
[1732217504831,2.5,255.45,255.21,38.016884]
[1732217505242,2.5,255.45,255.21,23.776884]
[1732217505447,2.5,255.45,255.2,23.776884]
[1732217506434,2.5,255.45,255.18,23.776884]
[1732217506730,2.5,255.45,255.09,2.15037281]
[1732217506731,2.5,255.45,255.24,5.0]
[1732217507044,2.5,255.45,255.27,23.776884]
[1732217507453,12.345,255.56,255.29,23.776884]
[1732217507856,2.21812004,255.5,255.29,23.776884]
[1732217508354,20.0,255.47,255.29,23.776884]
[1732217509251,20.0,255.47,255.24,23.776884]
[1732217509456,20.0,255.47,255.08,11.83367462]
[1732217509838,20.0,255.47,255.09,0.58717715]
[1732217510335,2.21812004,255.5,255.1,15.74667462]
[1732217511051,2.21812004,255.5,255.11,0.09367462]
[1732217511253,12.345,255.56,255.11,0.09367462]
[1732217511441,12.345,255.56,255.16,11.74]
[1732217511647,12.345,255.56,255.18,11.74]
[1732217511949,12.345,255.56,255.22,11.74]
[1732217512139,12.345,255.56,255.24,11.74]
[1732217512368,2.15292551,255.53,255.28,11.74]
[1732217512560,2.15292551,255.53,255.29,11.74]
[1732217512857,2.15292551,255.53,255.3,23.776884]
[1732217515147,20.0,255.47,255.21,11.74]
[1732217515537,2.15292551,255.53,255.21,12.32713008]
[1732217516256,2.15292551,255.53,255.21,0.58713008]
[1732217516432,2.15292551,255.53,255.23,11.74]
[1732217516743,34.778958,255.48,255.28,23.776884]
[1732217516950,34.778958,255.48,255.3,23.776884]
[1732217517143,34.778958,255.48,255.3,11.74]
[1732217517555,34.778958,255.48,255.31,23.776884]
[1732217519246,34.778958,255.48,255.3,11.74]
[1732217519642,34.778958,255.48,255.31,23.776884]
[1732217520237,34.778958,255.48,255.31,35.516884]
[1732217520762,34.778958,255.48,255.31,23.776884]
[1732217520964,34.778958,255.48,255.3,23.776884]
[1732217521949,34.778958,255.48,255.32,23.776884]
[1732217524442,34.778958,255.48,255.3,35.486884]
[1732217526944,34.778958,255.48,255.28,23.776884]
[1732217527666,33.215,255.48,255.28,35.486884]
[1732217528652,33.215,255.48,255.28,37.6452839]
[1732217529249,33.215,255.48,255.09,3.24]
[1732217529250,20.0,255.46,255.09,3.24]
[1732217529567,44.9847,255.42,255.09,3.24]
[1732217529860,20.0,255.46,255.09,3.24]
[1732217529861,64.9847,255.41,255.1,0.58735]
[1732217530280,64.9847,255.41,255.1,12.29735]
[1732217531553,44.9847,255.41,255.1,11.71]
[1732217531956,44.9847,255.41,255.12,11.71]
[1732217532185,44.9847,255.41,255.14,11.71]
[1732217532361,52.5203,255.4,255.1,11.71]
[1732217532680,20.0,255.38,255.1,11.71]
[1732217532847,20.0,255.38,255.1,12.29739625]
[1732217533267,20.0,255.38,255.11,11.71]
[1732217533648,20.0,255.38,255.0,11.71]
[1732217533852,12.1417,255.36,255.0,11.71]
[1732217534058,32.5146,255.35,255.0,11.71]
[1732217534755,20.0,255.34,255.0,11.71]
[1732217534952,32.5146,255.35,255.01,24.36431306]
[1732217535177,32.5146,255.35,255.06,11.71]
[1732217535379,32.5146,255.35,255.1,11.71]
[1732217535677,32.5146,255.35,255.12,11.71]
[1732217536056,32.5146,255.35,255.16,11.71]
[1732217536276,32.5146,255.35,255.18,11.71]
[1732217536464,32.5146,255.35,255.21,23.776884]
[1732217536878,32.5146,255.35,255.21,35.486884]
[1732217551883,32.5146,255.35,255.19,23.776884]
[1732217552184,32.5146,255.35,255.19,11.71]
[1732217553170,32.5146,255.35,255.2,23.776884]
[1732217554176,32.5146,255.35,255.24,23.776884]
[1732217554588,32.5146,255.35,255.24,35.486884]
[1732217557285,32.5146,255.35,255.24,37.72682125]
[1732217557784,32.5146,255.35,255.24,26.01682125]
[1732217560970,32.5146,255.35,255.24,37.72682125]
[1732217561880,32.5146,255.35,255.24,26.01682125]
[1732217562276,32.5146,255.35,255.14,4.07370775]
[1732217563085,32.5146,255.35,255.15,11.71]
[1732217563791,32.5146,255.35,255.17,11.71]
[1732217563982,32.5146,255.35,255.19,23.776884]
[1732217564774,32.5146,255.35,255.19,35.486884]
[1732217573072,32.5146,255.35,255.21,35.486884]
[1732217579003,32.5146,255.35,255.21,37.71838557]
[1732217580791,32.5146,255.35,255.21,41.62238557]
[1732217583086,32.5146,255.35,255.26,23.776884]
[1732217583399,32.5146,255.35,255.29,11.71]
[1732217583600,32.5146,255.35,255.32,11.71]
[1732217583796,32.5146,255.35,255.33,23.776884]
[1732217584178,5.6771832,255.36,255.33,35.486884]
[1732217584374,2.5,255.63,255.33,35.486884]
[1732217584579,11.16127351,255.79,255.33,35.486884]
[1732217584580,6.004382,255.56,255.33,35.486884]
[1732217584988,6.004382,255.56,255.34,0.5868999]
[1732217585181,4.73066607,255.65,255.34,0.5868999]
[1732217585378,2.5,255.62,255.34,0.5868999]
[1732217585580,2.5,255.62,255.33,39.390884]
[1732217585777,2.23066607,255.65,255.35,11.71]
[1732217586019,6.004382,255.63,255.37,11.71]
[1732217586303,2.5,255.69,255.41,11.71]
[1732217586601,2.5,255.69,255.43,11.71]
[1732217586778,6.004382,255.7,255.47,23.776884]
[1732217586779,2.5,255.65,255.47,23.776884]
[1732217586979,2.5,255.65,255.44,23.776884]
[1732217587284,13.0265,255.63,255.44,23.776884]
[1732217589300,2.5,255.62,255.44,23.776884]
[1732217589892,13.0265,255.63,255.44,23.776884]
[1732217590200,15.5265,255.63,255.44,23.776884]
[1732217590586,13.0265,255.63,255.44,23.776884]
[1732217590988,13.0265,255.63,255.44,30.84364589]
[1732217594003,13.0265,255.63,255.45,4.88295301]
[1732217594309,13.0265,255.63,255.46,39.22458016]
[1732217594612,13.0265,255.63,255.48,23.776884]
[1732217594783,13.0265,255.63,255.48,4.88295301]
[1732217594984,13.0265,255.63,255.49,23.776884]
[1732217595400,13.0265,255.63,255.45,23.776884]
[1732217595615,13.0265,255.63,255.4,8.62064917]
[1732217596914,13.0265,255.63,255.41,23.776884]
[1732217597211,13.0265,255.63,255.43,23.776884]
[1732217598701,13.0265,255.63,255.42,4.88295301]
[1732217599906,13.0265,255.63,255.43,23.776884]
[1732217600787,2.5,255.56,255.32,3.24]
[1732217601106,13.0077,255.52,255.32,3.24]
[1732217601323,2.5,255.51,255.32,3.24]
[1732217601605,30.8418,255.5,255.32,3.24]
[1732217602607,30.8418,255.5,255.32,5.42470091]
[1732217602997,2.5,255.49,255.32,3.24]
[1732217603304,43.1566,255.43,255.32,3.24]
[1732217603607,43.1566,255.43,255.24,2.23539104]
[1732217603805,43.1566,255.43,255.17,11.71]
[1732217604303,43.1566,255.43,255.17,16.59295301]
[1732217604503,43.1566,255.43,255.19,11.71]
[1732217604713,43.1566,255.43,255.23,11.71]
[1732217604887,43.1566,255.43,255.26,23.776884]
[1732217605417,43.1566,255.43,255.25,23.776884]
[1732217605790,43.1566,255.43,255.23,23.776884]
[1732217606191,43.1566,255.43,255.18,4.88295301]
[1732217606192,2.5,255.4,255.18,4.88295301]
[1732217606505,30.2169,255.38,255.19,11.71]
[1732217607111,30.2169,255.38,255.18,4.88295301]
[1732217607306,12.9397,255.36,255.18,4.88295301]
[1732217607498,2.5,255.35,255.15,11.71]
[1732217608489,2.5,255.35,255.16,23.776884]
[1732217609210,2.5,255.34,255.16,23.776884]
[1732217609521,12.9397,255.36,255.16,23.776884]
[1732217609689,2.5,255.35,255.16,23.776884]
[1732217609889,12.9397,255.36,255.16,23.776884]
[1732217610090,2.5,255.34,255.16,23.776884]
[1732217610311,12.9397,255.36,255.16,23.776884]
[1732217610497,2.5,255.34,255.16,23.776884]
[1732217611203,2.5,255.35,255.16,23.776884]
[1732217611899,2.5,255.35,255.18,23.776884]
[1732217612799,2.5,255.34,255.18,23.776884]
[1732217613019,2.5,255.35,255.18,23.776884]
[1732217613703,12.9397,255.36,255.18,35.486884]
[1732217614094,12.9397,255.36,255.22,11.71]
[1732217614299,12.9397,255.36,255.19,4.88295301]
[1732217614300,2.5,255.18,254.91,6.0912354]
[1732217614516,2.5,255.14,254.84,39.4647]
[1732217614702,0.99357407,255.4,254.93,11.97831517]
[1732217614703,2.5,255.11,254.93,11.97831517]
[1732217615007,12.4267,255.08,254.95,11.97831517]
[1732217615906,12.4267,255.08,254.97,11.97831517]
[1732217616417,12.4267,255.08,254.99,11.97831517]
[1732217616717,12.4267,255.08,255.0,19.15400526]
[1732217617721,12.4267,255.08,255.01,23.776884]
[1732217617923,12.4267,255.08,254.92,2.2321543]
[1732217617924,2.5,255.05,254.92,2.2321543]
[1732217618218,30.0318,255.02,254.88,19.15400526]
[1732217618520,12.4726,254.96,254.8,19.15400526]
[1732217618725,12.4726,254.96,254.72,8.672]
[1732217618726,12.4726,254.96,254.78,19.15400526]
[1732217618896,12.4726,254.96,254.79,11.71]
[1732217619524,2.5,254.94,254.83,5.39710451]
[1732217619901,12.4726,254.96,254.83,5.39710451]
[1732217620095,14.9726,254.96,254.83,5.39710451]
[1732217620302,12.4726,254.96,254.83,5.39710451]
[1732217621319,12.4726,254.96,254.84,35.486884]
[1732217621522,12.4726,254.96,254.84,54.64088926]
[1732217622123,12.4726,254.96,254.83,5.39710451]
[1732217622124,12.4726,254.96,254.9,19.15400526]
[1732217622438,7.97552404,254.96,254.93,23.776884]
[1732217622722,30.0318,255.02,254.93,23.776884]
[1732217623108,30.0318,255.02,254.94,19.15400526]
[1732217623907,30.0318,255.02,254.93,23.776884]
[1732217624714,32.5318,255.02,254.84,19.15400526]
[1732217624907,32.5318,255.02,254.85,11.71]
[1732217625209,30.0318,255.02,254.86,30.86400526]
[1732217625629,12.014,255.01,254.86,30.86400526]
[1732217625998,12.014,255.01,254.87,23.776884]
[1732217627021,12.014,255.01,254.86,19.15400526]
[1732217627227,12.014,255.01,254.84,19.15400526]
[1732217628526,12.014,255.01,254.85,23.776884]
[1732217629726,12.014,255.01,254.88,19.15400526]
[1732217629910,12.014,255.01,254.9,19.15400526]
[1732217630112,12.014,255.01,254.91,23.776884]
[1732217630323,12.014,255.01,254.92,19.15400526]
[1732217630520,12.014,255.01,254.93,23.776884]
[1732217630726,12.014,255.01,254.95,19.15400526]
[1732217631006,12.014,255.01,254.98,23.776884]
[1732217631225,30.0318,255.02,254.98,23.776884]
[1732217631821,30.0318,255.02,254.99,19.15400526]
[1732217632026,12.1388,255.07,255.0,23.776884]
[1732217632328,12.1388,255.07,255.02,23.776884]
[1732217632737,2.5,255.17,255.02,23.776884]
[1732217634422,2.5,255.24,255.05,30.86400526]
[1732217634629,2.5,255.24,255.06,23.776884]
[1732217634834,2.5,255.18,255.06,23.776884]
[1732217635016,32.6684,255.17,255.06,23.776884]
[1732217635729,45.4608,255.17,255.06,23.776884]
[1732217636626,45.4608,255.17,255.04,23.776884]
[1732217636823,45.4608,255.17,255.06,23.776884]
[1732217641825,45.4608,255.17,255.07,19.15400526]
[1732217642029,45.4608,255.17,255.11,23.776884]
[1732217643038,32.6684,255.17,255.12,19.15400526]
[1732217643225,32.6684,255.17,255.13,23.776884]
[1732217644506,12.5273,255.24,255.13,23.776884]
[1732217644507,43.916,255.24,255.13,23.776884]
[1732217644711,43.916,255.24,255.14,19.15400526]
[1732217644909,43.916,255.24,255.15,23.776884]
[1732217646527,43.916,255.24,255.17,23.776884]
[1732217646921,43.916,255.24,255.19,23.776884]
[1732217647230,46.416,255.24,255.19,23.776884]
[1732217648120,43.916,255.24,255.19,23.776884]
[1732217648916,43.916,255.24,255.11,2.18872249]
[1732217648917,43.916,255.24,255.18,23.776884]
[1732217650540,31.3887,255.24,255.18,35.486884]
[1732217650719,31.3887,255.24,255.19,23.66589384]
[1732217650915,31.3887,255.24,255.18,23.776884]
[1732217650916,31.4408,255.31,255.25,23.776884]
[1732217651129,31.4408,255.31,255.25,35.73277784]
[1732217652443,31.4408,255.31,255.25,47.44277784]
[1732217652735,31.4408,255.31,255.25,54.60444552]
[1732217652918,31.4408,255.31,255.27,30.82756152]
[1732217653226,31.4408,255.31,255.28,23.776884]
[1732217654131,31.4408,255.31,255.27,11.71]
[1732217654132,31.4408,255.31,255.27,23.776884]
[1732217656244,31.4408,255.31,255.27,42.89444552]
[1732217656447,31.4408,255.31,255.27,23.776884]
[1732217656939,31.4408,255.31,255.28,11.71]
[1732217657129,31.4408,255.31,255.29,23.776884]
[1732217657635,12.5242,255.36,255.29,23.776884]
[1732217658229,12.5242,255.36,255.27,19.11756152]
[1732217658230,2.5,255.32,255.27,23.776884]
[1732217658427,2.5,255.28,255.16,19.11756152]
[1732217659347,2.5,255.28,255.17,11.71]
[1732217660236,2.5,255.28,255.18,35.486884]
[1732217661020,2.5,255.33,255.2,19.11756152]
[1732217661238,2.5,255.35,255.25,23.776884]
[1732217662051,2.5,255.35,255.27,23.776884]
[1732217662419,12.5242,255.36,255.27,23.776884]
[1732217662621,30.5801,255.37,255.19,30.82756152]
[1732217662622,30.5801,255.37,255.34,23.776884]
[1732217663142,15.5586,255.42,255.34,23.776884]
[1732217663344,13.0586,255.42,255.34,23.776884]
[1732217663525,15.5586,255.42,255.34,23.776884]
[1732217663932,15.5586,255.42,255.21,11.71]
[1732217663933,2.5,255.4,255.32,23.776884]
[1732217664246,2.5,255.4,255.28,23.776884]
[1732217665544,2.5,255.4,255.29,19.11756152]
[1732217666045,2.5,255.4,255.3,23.776884]
[1732217668050,13.0586,255.42,255.3,23.776884]
[1732217668051,2.5,255.37,255.3,23.776884]
[1732217668547,2.5,255.37,255.27,19.11756152]
[1732217668548,31.8654,255.34,255.23,19.11756152]
[1732217668750,2.5,255.32,255.21,19.11756152]
[1732217668933,2.5,255.27,255.19,19.11756152]
[1732217669447,2.5,255.27,255.17,19.11756152]
[1732217669643,15.3432,255.28,255.17,19.11756152]
[1732217669834,2.5,255.25,255.17,19.11756152]
[1732217670235,2.5,255.26,255.19,19.11756152]
[1732217670848,15.3432,255.28,255.19,19.11756152]
[1732217671051,2.5,255.25,255.19,19.11756152]
[1732217671546,2.5,255.25,255.2,23.776884]
[1732217671947,2.5,255.25,255.18,23.776884]
[1732217672153,2.5,255.25,255.13,19.11756152]
[1732217672530,2.5,255.24,255.13,19.11756152]
[1732217672730,2.47485982,255.24,255.13,19.11756152]
[1732217673137,33.0201,255.21,255.11,19.11756152]
[1732217673349,2.47485982,255.18,255.07,0.39204924]
[1732217673650,2.47485982,255.18,255.08,19.11756152]
[1732217674058,2.47485982,255.15,255.08,19.11756152]
[1732217675038,2.47485982,255.15,255.09,23.776884]
[1732217675233,33.0201,255.21,255.09,23.776884]
[1732217675234,2.47485982,255.17,255.09,23.776884]
[1732217675447,2.47485982,255.15,255.09,23.776884]
[1732217675629,33.0201,255.21,255.14,19.11756152]
[1732217675834,33.0201,255.21,255.18,19.11756152]
[1732217676039,33.0201,255.21,255.19,23.776884]
[1732217676733,44.4902,255.28,255.21,23.776884]
[1732217676955,44.4902,255.28,255.23,23.776884]
[1732217677650,2.47485982,255.27,255.21,23.776884]
[1732217677947,2.47485982,255.27,255.19,23.776884]
[1732217678148,44.4902,255.28,255.19,23.776884]
[1732217678336,2.47485982,255.27,255.19,23.776884]
[1732217678538,44.4902,255.28,255.2,19.11756152]
[1732217678737,46.96505982,255.28,255.23,23.776884]
[1732217679142,2.47485982,255.27,255.19,23.776884]
[1732217679343,2.47485982,255.27,255.17,23.776884]